bitfinex-derivatives/quotes_BTCF0:USTF0_20260104
["timestamp","ask_amount","ask_price","bid_price","bid_amount"]
[1767489965220,0.04247423,91231.0,91213.0,0.09324]
[1767489965420,0.08575642,91230.0,91213.0,0.09324]
[1767489965620,0.09273665,91229.0,91213.0,0.09324]
[1767489966009,0.13521088,91233.0,91214.0,0.0443846]
[1767489966215,0.08575642,91230.0,91214.0,0.0443846]
[1767489974426,0.13521088,91223.0,91210.0,0.00016441]
[1767489974724,0.13521088,91219.0,91193.0,0.09324]
[1767489974917,0.13521088,91210.0,91191.0,0.0443846]
[1767489975117,0.04247423,91208.0,91192.0,0.09324]
[1767489975327,0.13521088,91207.0,91192.0,0.09324]
[1767489975622,0.09273665,91207.0,91192.0,0.09324]
[1767489975818,0.09273665,91207.0,91194.0,0.00010965]
[1767489976416,0.00016441,91212.0,91197.0,0.0443846]
[1767489976622,0.00016441,91212.0,91194.0,0.04449425]
[1767489979630,0.00016441,91212.0,91199.0,0.04657762]
[1767489979821,0.00016441,91212.0,91199.0,0.00219302]
[1767489980526,0.08575642,91210.0,91199.0,0.00219302]
[1767489982427,0.00016441,91212.0,91199.0,0.00219302]
[1767489985530,0.08575642,91210.0,91199.0,0.00219302]
[1767489987633,0.00016441,91212.0,91199.0,0.00219302]
[1767489987822,0.08575642,91210.0,91199.0,0.00219302]
[1767489988226,0.00016441,91212.0,91199.0,0.00219302]
[1767489988536,0.00016441,91212.0,91199.0,0.04657762]
[1767489989731,0.00016441,91212.0,91200.0,0.09329993]
[1767489990032,0.00016441,91212.0,91201.0,0.03707695]
[1767489990725,0.00016441,91212.0,91202.0,0.03707695]
[1767489990931,0.08575642,91220.0,91202.0,0.03707695]
[1767489991144,0.09324,91223.0,91199.0,0.00219302]
[1767489991145,0.13640085,91212.0,91199.0,0.00219302]
[1767489991332,0.08575642,91210.0,91199.0,0.00219302]
[1767489992833,0.13603443,91209.0,91199.0,0.00219302]
[1767489993134,0.09715135,91209.0,91199.0,0.00219302]
[1767489993634,0.13603443,91209.0,91199.0,0.00219302]
[1767489993829,0.09715135,91208.0,91199.0,0.00219302]
[1767489995230,0.09715135,91203.0,91184.0,0.04001508]
[1767489995534,0.08575642,91200.0,91184.0,0.04001508]
[1767489995831,0.08575642,91200.0,91180.0,0.04001508]
[1767489996136,0.08575642,91200.0,91181.0,0.04001508]
[1767489996336,0.00012178,91199.0,91181.0,0.04001508]
[1767489996537,0.00012178,91199.0,91181.0,0.04017949]
[1767489997630,0.09727313,91199.0,91181.0,0.04017949]
[1767489997831,0.09715135,91198.0,91181.0,0.00016441]
[1767490001230,0.09715135,91198.0,91182.0,0.010971]
[1767490002230,0.13603443,91196.0,91182.0,0.010971]
[1767490002843,0.09715135,91196.0,91182.0,0.010971]
[1767490003732,0.03888308,91183.0,91150.0,0.010975]
[1767490003939,0.03888308,91170.0,91149.0,0.04001508]
[1767490004134,0.03888308,91170.0,91153.0,0.010975]
[1767490004332,0.03888308,91170.0,91150.0,0.010975]
[1767490004535,0.03888308,91170.0,91150.0,0.14340892]
[1767490004739,0.0001645,91169.0,91151.0,0.04001508]
[1767490005243,0.03904758,91169.0,91151.0,0.04001508]
[1767490005842,0.03904758,91169.0,91148.0,9.454e-05]
[1767490005843,0.00012178,91182.0,91171.0,0.04001508]
[1767490006047,0.13603443,91200.0,91159.0,0.0858294]
[1767490006048,0.09324,91197.0,91178.0,0.09241884]
[1767490006344,0.13212308,91198.0,91178.0,0.13243392]
[1767490007050,0.0001645,91197.0,91179.0,0.0001645]
[1767490008047,0.0001645,91197.0,91179.0,0.13259842]
[1767490008739,0.0001645,91197.0,91182.0,0.09241884]
[1767490011851,0.0001645,91197.0,91183.0,0.04001508]
[1767490012054,0.10812035,91207.0,91194.0,0.13243392]
[1767490012055,0.09324,91207.0,91194.0,0.13243392]
[1767490012248,0.09324,91207.0,91194.0,0.09241884]
[1767490012452,0.09324,91207.0,91191.0,0.04001508]
[1767490013452,0.09324,91207.0,91188.0,0.09241884]
[1767490013648,0.03888308,91206.0,91185.0,0.13243392]
[1767490015257,0.03888308,91206.0,91186.0,0.13243392]
[1767490016059,0.03888308,91206.0,91181.0,0.04001508]
[1767490016060,0.03888308,91201.0,91181.0,0.04001508]
[1767490016954,0.03888308,91206.0,91183.0,0.13243392]
[1767490017157,0.03888308,91206.0,91184.0,0.13243392]
[1767490017557,0.03888308,91202.0,91180.0,0.22567392]
[1767490017750,0.03888308,91199.0,91181.0,0.13243392]
[1767490018360,0.03888308,91205.0,91182.0,0.13243392]
[1767490018663,0.03888308,91203.0,91182.0,0.13243392]
[1767490019058,0.03888308,91203.0,91183.0,0.13243392]
[1767490019253,0.03888308,91203.0,91184.0,0.13243392]
[1767490020765,0.1306212,91207.0,91186.0,0.13508667]
[1767490021662,0.0373812,91206.0,91186.0,0.13508667]
[1767490021868,0.09324,91207.0,91189.0,0.13508667]
[1767490022366,0.00219302,91199.0,91189.0,0.13508667]
[1767490025568,0.00219302,91199.0,91184.0,0.13508667]
[1767490025769,0.00219302,91199.0,91186.0,0.0382448]
[1767490026171,0.00219302,91199.0,91186.0,0.13508667]
[1767490026566,0.00219302,91199.0,91187.0,0.13508667]
[1767490027565,0.00219302,91199.0,91184.0,0.0382448]
[1767490027770,0.00219302,91199.0,91183.0,0.010971]
[1767490027969,0.03957422,91199.0,91179.0,0.0001645]
[1767490028163,0.03957422,91199.0,91179.0,0.22849117]
[1767490028368,0.03957422,91199.0,91180.0,0.13508667]
[1767490028672,0.03957422,91199.0,91181.0,0.13508667]
[1767490029274,0.00219302,91199.0,91182.0,0.13508667]
[1767490030474,0.0373812,91198.0,91180.0,0.010972]
[1767490030975,0.00219302,91199.0,91181.0,0.13508667]
[1767490031276,0.00219302,91199.0,91179.0,0.0934045]
[1767490031277,0.00219302,91199.0,91182.0,0.14605767]
[1767490031573,0.09324,91207.0,91195.0,0.13508667]
[1767490031776,0.09324,91207.0,91196.0,0.13508667]
[1767490033368,0.0001645,91208.0,91196.0,0.13508667]
[1767490033576,0.0001645,91208.0,91199.0,0.09684187]
[1767490033775,0.09324,91210.0,91199.0,0.09684187]
[1767490036071,0.05646043,91210.0,91203.0,0.13508667]
[1767490036273,0.09324,91216.0,91204.0,0.09684187]
[1767490036876,0.09324,91219.0,91207.0,0.13508667]
[1767490038773,0.09324,91219.0,91207.0,0.09684187]
[1767490040877,0.09324,91219.0,91204.0,0.0384093]
[1767490041579,0.09324,91219.0,91204.0,0.13525117]
[1767490043572,0.09324,91219.0,91207.0,0.09684187]
[1767490045084,0.0373812,91234.0,91211.0,0.13508667]
[1767490045284,0.09324,91228.0,91213.0,0.09684187]
[1767490045679,0.09324,91228.0,91214.0,0.13508667]
[1767490046886,0.09324,91228.0,91217.0,0.09684187]
[1767490049073,0.09324,91228.0,91212.0,0.13508667]
[1767490049272,0.09324,91228.0,91213.0,0.13508667]
[1767490053086,0.104206,91228.0,91213.0,0.13508667]
[1767490053285,0.104206,91228.0,91204.0,0.0001645]
[1767490053591,0.03628616,91226.0,91204.0,0.0001645]
[1767490053890,0.03628616,91225.0,91204.0,0.0001645]
[1767490054292,0.04725216,91225.0,91204.0,0.0001645]
[1767490054790,0.03628616,91224.0,91204.0,0.0001645]
[1767490055490,0.03628616,91224.0,91204.0,0.03543585]
[1767490056089,0.04725316,91224.0,91204.0,0.13045411]
[1767490056792,0.03628616,91224.0,91204.0,0.13045411]
[1767490057993,0.03628616,91224.0,91205.0,0.03527135]
[1767490058188,0.03628616,91223.0,91204.0,0.09518276]
[1767490058390,0.03628616,91212.0,91193.0,0.09324]
[1767490058591,0.03628616,91206.0,91188.0,0.09501826]
[1767490059385,0.03628616,91206.0,91188.0,0.13028961]
[1767490059586,0.09290422,91209.0,91188.0,0.13028961]
[1767490059792,0.0001645,91206.0,91188.0,0.13045411]
[1767490060093,0.03645066,91206.0,91188.0,0.09518276]
[1767490060686,0.0001645,91206.0,91188.0,0.13045411]
[1767490060997,0.0001645,91206.0,91189.0,0.03527135]
[1767490062790,0.03645066,91206.0,91188.0,0.09518276]
[1767490063496,0.0001645,91206.0,91189.0,0.03527135]
[1767490063695,0.0001645,91206.0,91190.0,0.03527135]
[1767490063996,0.0001645,91206.0,91191.0,0.03527135]
[1767490064192,0.0001645,91206.0,91191.0,0.13028961]
[1767490064500,0.0001645,91206.0,91192.0,0.13028961]
[1767490064693,0.0001645,91206.0,91194.0,0.03527135]
[1767490064895,0.0001645,91206.0,91194.0,0.13028961]
[1767490065096,0.0001645,91206.0,91195.0,0.03527135]
[1767490065798,0.0001645,91206.0,91192.0,0.03527135]
[1767490065991,0.03628616,91178.0,91158.0,0.03527135]
[1767490066193,0.03628616,91177.0,91154.0,0.12851135]
[1767490066391,0.08580834,91170.0,91155.0,0.03527135]
[1767490066595,0.08580834,91170.0,91151.0,0.03527135]
[1767490066789,0.1220945,91170.0,91151.0,0.03527135]
[1767490066992,0.1220945,91170.0,91151.0,0.03543585]
[1767490066993,0.08597284,91170.0,91151.0,0.03543585]
[1767490067189,0.09324,91182.0,91160.0,0.08580834]
[1767490067387,0.09324,91182.0,91171.0,0.03527135]
[1767490067587,0.08580834,91190.0,91171.0,0.03527135]
[1767490067792,0.09324,91189.0,91171.0,0.03527135]
[1767490068494,0.0934045,91189.0,91171.0,0.0001645]
[1767490068998,0.0934045,91189.0,91174.0,0.03527135]
[1767490069193,0.0934045,91189.0,91174.0,0.13028961]
[1767490069600,0.0934045,91189.0,91174.0,0.09501826]
[1767490070290,0.09324,91188.0,91174.0,0.09501826]
[1767490077311,0.09324,91188.0,91171.0,0.0001645]
[1767490078412,0.03628616,91185.0,91171.0,0.0001645]
[1767490078608,0.03628616,91184.0,91171.0,0.0001645]
[1767490079601,0.09290422,91185.0,91171.0,0.0001645]
[1767490080002,0.12651178,91185.0,91171.0,0.0001645]
[1767490080203,0.03360756,91184.0,91171.0,0.0001645]
[1767490084907,0.09290422,91185.0,91171.0,0.0001645]
[1767490085109,0.09324,91188.0,91171.0,0.0001645]
[1767490085306,0.12684756,91188.0,91171.0,0.0001645]
[1767490086115,0.03360756,91187.0,91171.0,0.0001645]
[1767490087321,0.09324,91188.0,91171.0,0.0001645]
[1767490087515,0.03360756,91188.0,91173.0,0.010972]
[1767490087818,0.09328,91187.0,91173.0,0.010972]
[1767490088119,0.12688756,91187.0,91173.0,0.010972]
[1767490089218,0.03360756,91186.0,91173.0,0.010972]
[1767490089710,0.03360756,91186.0,91171.0,0.0001645]
[1767490090106,0.13299306,91186.0,91171.0,0.0001645]
[1767490092425,0.13299306,91185.0,91171.0,0.0001645]
[1767490092621,0.03360756,91183.0,91171.0,0.0001645]
[1767490093820,0.03360756,91181.0,91171.0,0.0001645]
[1767490096022,0.0993855,91182.0,91171.0,0.0001645]
[1767490096222,0.03360756,91203.0,91183.0,0.0332914]
[1767490096429,0.12425544,91198.0,91181.0,0.094635]
[1767490096722,0.12688756,91198.0,91180.0,0.08580834]
[1767490097225,0.03360756,91197.0,91180.0,0.08580834]
[1767490097922,0.03360756,91197.0,91180.0,0.09678034]
[1767490098528,0.03360756,91196.0,91180.0,0.09678034]
[1767490100132,0.13299306,91187.0,91175.0,0.010972]
[1767490100314,0.13299306,91187.0,91177.0,0.010972]
[1767490100516,0.03360756,91190.0,91177.0,0.010972]
[1767490102926,0.03360756,91190.0,91174.0,0.010972]
[1767490103330,0.03360756,91190.0,91176.0,0.010972]
[1767490104632,0.03360756,91188.0,91176.0,0.010972]
[1767490109033,0.03360756,91188.0,91178.0,0.010972]
[1767490112636,0.0993855,91189.0,91178.0,0.010972]
[1767490113732,0.1292127,91189.0,91172.0,0.010973]
[1767490113927,0.1292127,91189.0,91171.0,0.0934445]
[1767490114128,0.0298272,91183.0,91171.0,0.0001645]
[1767490114327,0.0912303,91188.0,91161.0,0.09830655]
[1767490114328,0.0298272,91177.0,91163.0,0.010974]
[1767490114540,0.0298272,91177.0,91165.0,0.010973]
[1767490115732,0.0298272,91177.0,91162.0,0.0111385]
[1767490116440,0.0298272,91177.0,91165.0,0.010974]
[1767490117237,0.1210575,91175.0,91165.0,0.010974]
[1767490117435,0.0298272,91174.0,91165.0,0.010974]
[1767490119045,0.0912303,91175.0,91165.0,0.010974]
[1767490119541,0.0299917,91180.0,91162.0,0.09847105]
[1767490120342,0.0299917,91180.0,91166.0,0.010973]
[1767490121547,0.0299917,91180.0,91168.0,0.010973]
[1767490124041,0.0299917,91180.0,91166.0,0.010973]
[1767490124337,0.0299917,91180.0,91164.0,0.010974]
[1767490124949,0.0299917,91180.0,91166.0,0.010973]
[1767490124950,0.0298272,91177.0,91166.0,0.010973]
[1767490125345,0.0912303,91178.0,91166.0,0.010973]
[1767490125735,0.0299917,91180.0,91166.0,0.010973]
[1767490126141,0.0298272,91177.0,91166.0,0.010973]
[1767490126350,0.0912303,91178.0,91166.0,0.010973]
[1767490126844,0.0001645,91180.0,91166.0,0.010973]
[1767490127150,0.0299917,91180.0,91168.0,0.010973]
[1767490127539,0.0298272,91176.0,91165.0,0.010974]
[1767490128045,0.0298272,91176.0,91162.0,0.0001645]
[1767490128247,0.0912303,91175.0,91162.0,0.0001645]
[1767490128447,0.0298272,91167.0,91157.0,0.010974]
[1767490128659,0.0298272,91165.0,91157.0,0.010974]
[1767490128950,0.0298272,91165.0,91153.0,0.104255]
[1767490129346,0.0912303,91166.0,91155.0,0.010975]
[1767490129650,0.0912303,91166.0,91157.0,0.010974]
[1767490129843,0.0912303,91171.0,91159.0,0.010974]
[1767490130042,0.1210575,91176.0,91161.0,0.010974]
[1767490130244,0.0298272,91175.0,91161.0,0.010974]
[1767490130644,0.0298272,91174.0,91161.0,0.010974]
[1767490131259,0.0298272,91173.0,91161.0,0.010974]
[1767490135554,0.1210575,91173.0,91161.0,0.010974]
[1767490135752,0.1210575,91172.0,91153.0,0.09830655]
[1767490135945,0.0298272,91167.0,91150.0,0.0001645]
[1767490136145,0.0298272,91167.0,91152.0,0.010975]
[1767490136345,0.0298272,91167.0,91150.0,0.0001645]
[1767490136946,0.0298272,91167.0,91156.0,0.010975]
[1767490140258,0.0912303,91168.0,91150.0,0.02899725]
[1767490140457,0.02665232,91180.0,91162.0,0.010974]
[1767490140754,0.09699011,91179.0,91164.0,0.010974]
[1767490140952,0.0001645,91180.0,91164.0,0.02883275]
[1767490141149,0.0001645,91180.0,91162.0,0.09154761]
[1767490141344,0.02665232,91180.0,91165.0,0.010973]
[1767490142054,0.0001645,91180.0,91169.0,0.010973]
[1767490142258,0.09328,91179.0,91169.0,0.010973]
[1767490142454,0.09328,91183.0,91172.0,0.010973]
[1767490144065,0.09328,91183.0,91169.0,0.02883275]
[1767490144248,0.09328,91183.0,91171.0,0.02883275]
[1767490144655,0.09328,91183.0,91174.0,0.010972]
[1767490145256,0.0934445,91187.0,91174.0,0.010972]
[1767490149474,0.11993232,91187.0,91174.0,0.010972]
[1767490150374,0.11993232,91187.0,91176.0,0.010972]
[1767490150571,0.0934445,91187.0,91176.0,0.010972]
[1767490150869,0.11993232,91187.0,91176.0,0.010972]
[1767490151074,0.09699011,91182.0,91172.0,0.010973]
[1767490153374,0.12347793,91182.0,91172.0,0.010973]
[1767490155579,0.09699011,91182.0,91172.0,0.010973]
[1767490157778,0.09699011,91182.0,91169.0,0.010973]
[1767490159379,0.12347793,91182.0,91168.0,0.0001645]
[1767490159583,0.02648782,91181.0,91168.0,0.0001645]
[1767490160482,0.02648782,91179.0,91168.0,0.0001645]
[1767490160675,0.12347793,91179.0,91168.0,0.0001645]
[1767490160874,0.02648782,91178.0,91168.0,0.0001645]
[1767490163783,0.02648782,91178.0,91169.0,0.010973]
[1767490163983,0.09699011,91179.0,91169.0,0.010973]
[1767490164189,0.09699011,91179.0,91168.0,0.0001645]
[1767490165183,0.02648782,91181.0,91168.0,0.0111375]
[1767490166393,0.09699011,91184.0,91168.0,0.0111375]
[1767490166394,0.12347793,91184.0,91172.0,0.010973]
[1767490167787,0.09328,91202.0,91183.0,0.010971]
[1767490167993,0.09328,91201.0,91183.0,0.010971]
[1767490168590,0.09328,91201.0,91179.0,0.12038036]
[1767490168788,0.0001645,91199.0,91181.0,0.0111365]
[1767490169893,0.02648782,91198.0,91181.0,0.0111365]
[1767490170383,0.11878923,91198.0,91181.0,0.0001645]
[1767490170584,0.12021114,91192.0,91176.0,0.010972]
[1767490170785,0.12021114,91190.0,91176.0,0.010972]
[1767490170986,0.02790973,91190.0,91179.0,0.010972]
[1767490171894,0.02790973,91190.0,91176.0,0.010972]
[1767490172279,0.02788425,91197.0,91179.0,0.010972]
[1767490172480,0.02788425,91196.0,91177.0,0.10966776]
[1767490172684,0.02788425,91189.0,91175.0,0.0001645]
[1767490173090,0.02788425,91183.0,91168.0,0.010973]
[1767490173293,0.02788425,91182.0,91168.0,0.010973]
[1767490173795,0.09161573,91188.0,91170.0,0.010973]
[1767490173995,0.02788425,91187.0,91170.0,0.010973]
[1767490174197,0.02788425,91187.0,91171.0,0.0001645]
[1767490175695,0.02788425,91179.0,91164.0,0.010974]
[1767490176286,0.02788425,91179.0,91169.0,0.00219374]
[1767490176889,0.0001645,91183.0,91169.0,0.00219374]
[1767490177088,0.02788425,91182.0,91169.0,0.00219374]
[1767490178694,0.02788425,91180.0,91169.0,0.00219374]
[1767490178894,0.02804875,91183.0,91169.0,0.00219374]
[1767490179290,0.02804875,91183.0,91170.0,0.010973]
[1767490180997,0.02788425,91181.0,91165.0,0.0001645]
[1767490181296,0.02788425,91178.0,91166.0,0.010973]
[1767490182600,0.02788425,91178.0,91168.0,0.010973]
[1767490183902,0.02788425,91178.0,91165.0,0.0001645]
[1767490184303,0.02788425,91178.0,91165.0,0.0111375]
[1767490184802,0.02788425,91178.0,91168.0,0.010973]
[1767490188306,0.02788425,91178.0,91166.0,0.010973]
[1767490188800,0.02788425,91178.0,91165.0,0.0001645]
[1767490188801,0.0001645,91183.0,91168.0,0.010973]
[1767490189007,0.12116425,91182.0,91168.0,0.010973]
[1767490189605,0.02788425,91181.0,91168.0,0.010973]
[1767490190197,0.0001645,91183.0,91170.0,0.010973]
[1767490190402,0.09328,91182.0,91170.0,0.010973]
[1767490193409,0.12116425,91182.0,91170.0,0.010973]
[1767490195008,0.02788425,91182.0,91170.0,0.010973]
[1767490196908,0.02788425,91182.0,91165.0,0.0001645]
[1767490198312,0.02788425,91182.0,91168.0,0.010973]
[1767490198711,0.1164782,91179.0,91165.0,0.0001645]
[1767490198914,0.02473175,91170.0,91162.0,0.010974]
[1767490201117,0.02473175,91170.0,91159.0,0.010974]
[1767490202816,0.02569847,91177.0,91159.0,0.010974]
[1767490203017,0.02569847,91176.0,91159.0,0.010974]
[1767490203315,0.02569847,91171.0,91157.0,0.0001645]
[1767490203611,0.02569847,91171.0,91162.0,0.010974]
[1767490203914,0.02569847,91175.0,91162.0,0.010974]
[1767490204415,0.02569847,91175.0,91164.0,0.010974]
[1767490205817,0.17913562,91180.0,91161.0,0.010974]
[1767490205818,0.02569847,91173.0,91161.0,0.010974]
[1767490206016,0.02569847,91173.0,91163.0,0.010974]
[1767490213224,0.02569847,91177.0,91163.0,0.010974]
[1767490216923,0.02569847,91177.0,91160.0,0.08585562]
[1767490217118,0.09328,91180.0,91161.0,0.12092258]
[1767490217521,0.11897847,91180.0,91161.0,0.12092258]
[1767490218426,0.02569847,91179.0,91167.0,0.010973]
[1767490220124,0.02569847,91179.0,91164.0,0.010974]
[1767490220340,0.02569847,91175.0,91160.0,0.010974]
[1767490221130,0.02569847,91175.0,91157.0,0.0001645]
[1767490221521,0.02569847,91175.0,91158.0,0.16498432]
[1767490222332,0.02569847,91175.0,91162.0,0.010974]
[1767490222715,0.17913562,91180.0,91162.0,0.010974]
[1767490222920,0.02569847,91179.0,91162.0,0.010974]
[1767490224330,0.02569847,91179.0,91160.0,0.010974]
[1767490224532,0.02569847,91169.0,91157.0,0.0001645]
[1767490224830,0.02569847,91169.0,91158.0,0.010974]
[1767490226828,0.02569847,91169.0,91160.0,0.010974]
[1767490227845,0.02569847,91174.0,91160.0,0.010974]
[1767490228537,0.11669492,91173.0,91157.0,0.0001645]
[1767490228936,0.02569847,91172.0,91157.0,0.0001645]
[1767490229326,0.17913562,91180.0,91157.0,0.0001645]
[1767490229327,0.11669492,91169.0,91157.0,0.0001645]
[1767490229521,0.02569847,91168.0,91157.0,0.0001645]
[1767490229729,0.02569847,91168.0,91155.0,0.09328]
[1767490230625,0.09813435,91165.0,91142.0,0.12033938]
[1767490230828,0.02268193,91159.0,91147.0,0.09328]
[1767490232431,0.02289985,91157.0,91139.0,0.09547446]
[1767490232639,0.02289985,91157.0,91139.0,0.10645146]
[1767490232822,0.02289985,91157.0,91141.0,0.010976]
[1767490233022,0.02289985,91157.0,91139.0,0.09547446]
[1767490233226,0.02289985,91157.0,91139.0,0.10645146]
[1767490233422,0.02289985,91155.0,91140.0,0.08585562]
[1767490233629,0.02289985,91151.0,91139.0,0.09547446]
[1767490233841,0.02289985,91151.0,91139.0,0.00219446]
[1767490234139,0.02289985,91147.0,91131.0,0.010978]
[1767490234836,0.02289985,91147.0,91134.0,0.010977]
[1767490236033,0.02289985,91140.0,91125.0,0.010978]
[1767490236244,0.02289985,91139.0,91125.0,0.010978]
[1767490236430,0.02289985,91139.0,91128.0,0.010978]
[1767490236739,0.0001646,91142.0,91128.0,0.010978]
[1767490236740,0.02306445,91142.0,91128.0,0.010978]
[1767490236933,0.02306445,91142.0,91121.0,0.2254353]
[1767490237138,0.0001646,91142.0,91130.0,0.08585562]
[1767490237337,6e-07,91142.0,91136.0,0.010977]
[1767490237541,0.11617985,91149.0,91136.0,0.010977]
[1767490237837,0.09328,91151.0,91139.0,0.08585562]
[1767490238037,0.02289985,91155.0,91139.0,0.08585562]
[1767490238231,0.09328,91154.0,91139.0,0.11570497]
[1767490238433,0.09328,91154.0,91140.0,0.08585562]
[1767490238741,0.02289985,91153.0,91137.0,0.0001646]
[1767490239233,0.02289985,91153.0,91140.0,0.08585562]
[1767490239436,0.02289985,91153.0,91140.0,0.09683262]
[1767490240334,0.00025914,91156.0,91142.0,0.11570497]
[1767490240530,0.00025914,91156.0,91142.0,0.09241898]
[1767490240932,0.02289985,91160.0,91142.0,0.09241898]
[1767490241136,0.02289985,91159.0,91143.0,0.010976]
[1767490241334,0.02289985,91156.0,91143.0,0.010976]
[1767490243833,0.02289985,91156.0,91140.0,0.010977]
[1767490247043,0.02289985,91156.0,91142.0,0.010976]
[1767490247236,0.0001646,91159.0,91137.0,0.0001646]
[1767490247237,0.02306445,91159.0,91139.0,0.11570497]
[1767490247835,0.02306445,91159.0,91143.0,0.010976]
[1767490248241,0.02289985,91158.0,91143.0,0.010976]
[1767490250247,0.02289985,91158.0,91146.0,0.010976]
[1767490250862,0.02306445,91159.0,91146.0,0.010976]
[1767490252067,0.02306445,91159.0,91139.0,0.09241898]
[1767490252068,0.02306445,91159.0,91141.0,0.010976]
[1767490252258,0.02289985,91157.0,91143.0,0.010976]
[1767490252757,0.02289985,91156.0,91143.0,0.010976]
[1767490257161,0.02289985,91156.0,91138.0,0.10339598]
[1767490258169,0.02289985,91156.0,91142.0,0.010976]
[1767490259173,0.02289985,91155.0,91142.0,0.010976]
[1767490259472,0.02289985,91155.0,91139.0,0.010977]
[1767490260867,0.02289985,91155.0,91141.0,0.010976]
[1767490261659,0.02069388,91146.0,91137.0,0.0001646]
[1767490261866,0.02069388,91144.0,91131.0,0.010978]
[1767490262163,0.0001646,91159.0,91125.0,0.20303167]
[1767490262164,0.02069388,91142.0,91125.0,0.20303167]
[1767490262559,0.02069388,91142.0,91125.0,0.09332]
[1767490262771,0.0001646,91159.0,91134.0,0.02013493]
[1767490262971,0.09332,91158.0,91145.0,0.010976]
[1767490263175,0.09332,91158.0,91142.0,0.12930552]
[1767490263364,0.09332,91158.0,91144.0,0.010976]
[1767490266779,0.02085848,91159.0,91144.0,0.010976]
[1767490266972,0.09332,91158.0,91144.0,0.010976]
[1767490269682,0.11401388,91158.0,91144.0,0.010976]
[1767490271481,0.11401388,91158.0,91139.0,0.02013493]
[1767490271680,0.02069388,91157.0,91139.0,0.02013493]
[1767490272079,0.02069388,91157.0,91137.0,0.09835919]
[1767490272267,0.02069388,91157.0,91144.0,0.010976]
[1767490272473,0.02069388,91157.0,91138.0,0.11832952]
[1767490272781,0.00219374,91169.0,91154.0,0.010975]
[1767490272975,0.1452959,91168.0,91151.0,0.10916959]
[1767490273286,0.02069388,91166.0,91151.0,0.010975]
[1767490273475,0.11255922,91165.0,91151.0,0.010975]
[1767490273675,0.02069388,91164.0,91151.0,0.010975]
[1767490273876,0.02069388,91163.0,91147.0,0.010976]
[1767490275783,0.02069388,91163.0,91145.0,0.09819459]
[1767490277291,0.02069388,91163.0,91145.0,0.10917059]
[1767490279177,0.02069388,91163.0,91147.0,0.010976]
[1767490279790,0.02069388,91162.0,91140.0,0.02013493]
[1767490279984,0.02069388,91160.0,91140.0,0.02013493]
[1767490280289,0.02069388,91160.0,91146.0,0.010976]
[1767490281579,0.02069388,91159.0,91146.0,0.010976]
[1767490281775,0.02069388,91159.0,91140.0,0.11832952]
[1767490282189,0.02069388,91159.0,91141.0,0.02013493]
[1767490282688,0.02069388,91159.0,91141.0,0.11832952]
[1767490283484,0.02069388,91159.0,91149.0,0.010975]
[1767490284074,0.02069388,91159.0,91146.0,0.010976]
[1767490284682,0.09328,91160.0,91146.0,0.010976]
[1767490285293,0.02069388,91159.0,91146.0,0.010976]
[1767490285790,0.02069388,91159.0,91142.0,0.010976]
[1767490285987,0.02069388,91155.0,91137.0,0.0111416]
[1767490286680,0.02069388,91155.0,91139.0,0.010977]
[1767490287382,0.02069388,91155.0,91137.0,0.0001646]
[1767490287578,0.09328,91160.0,91120.0,0.11341493]
[1767490287579,0.09186534,91141.0,91120.0,0.11341493]
[1767490287783,0.02069388,91140.0,91120.0,0.12439393]
[1767490287987,0.02069388,91140.0,91121.0,0.10971288]
[1767490288586,0.02085848,91140.0,91122.0,0.11832952]
[1767490288792,0.0001646,91140.0,91123.0,0.010979]
[1767490288991,0.0001646,91140.0,91123.0,0.12930852]
[1767490289193,0.0001646,91140.0,91123.0,0.11832952]
[1767490289795,0.09328,91145.0,91126.0,0.11832952]
[1767490290191,0.09328,91145.0,91127.0,0.01922827]
[1767490290387,0.09328,91145.0,91127.0,0.10973292]
[1767490290995,0.0934446,91145.0,91127.0,0.10973292]
[1767490291394,0.11268388,91145.0,91127.0,0.10973292]
[1767490291698,0.01923928,91144.0,91125.0,0.03118407]
[1767490291898,0.01923928,91144.0,91125.0,0.12587417]
[1767490292096,0.01858735,91143.0,91125.0,0.0946901]
[1767490293193,0.01858735,91143.0,91125.0,0.11489617]
[1767490293690,0.01858735,91143.0,91125.0,0.0946901]
[1767490295301,0.01858735,91143.0,91125.0,0.1056681]
[1767490295500,0.01858735,91143.0,91125.0,0.0946901]
[1767490296000,0.0934446,91145.0,91126.0,0.02020607]
[1767490296400,0.0934446,91145.0,91126.0,0.11489617]
[1767490296997,0.01858735,91142.0,91121.0,0.0001646]
[1767490297304,0.01858735,91140.0,91121.0,0.0001646]
[1767490297502,0.11420571,91140.0,91121.0,0.0001646]
[1767490297703,0.11420571,91140.0,91121.0,0.11506077]
[1767490297904,0.01858735,91139.0,91121.0,0.11506077]
[1767490298298,0.11420571,91144.0,91122.0,0.03118507]
[1767490298497,0.01858735,91143.0,91122.0,0.03118507]
[1767490298704,0.11420571,91141.0,91122.0,0.010979]
[1767490298911,0.01858735,91140.0,91122.0,0.010979]
[1767490300105,0.01858735,91140.0,91124.0,0.010978]
[1767490300600,0.11420571,91140.0,91124.0,0.010978]
[1767490300795,0.01858735,91139.0,91124.0,0.010978]
[1767490301497,0.09561836,91140.0,91124.0,0.010978]
[1767490301700,0.01858735,91143.0,91124.0,0.010978]
[1767490302102,0.01858735,91143.0,91130.0,0.010978]
[1767490302309,0.18906296,91145.0,91130.0,0.010978]
[1767490303708,0.18906296,91145.0,91127.0,0.010978]
[1767490303912,0.20765031,91145.0,91127.0,0.010978]
[1767490304504,0.20765031,91145.0,91130.0,0.08591379]
[1767490304711,0.20765031,91145.0,91130.0,0.09689179]
[1767490306208,0.20765031,91145.0,91132.0,0.010977]
[1767490306805,0.20765031,91145.0,91130.0,0.08591379]
[1767490307208,0.01858735,91140.0,91126.0,0.010978]
[1767490307509,0.01858735,91144.0,91130.0,0.08591379]
[1767490307812,0.01858735,91144.0,91126.0,0.010978]
[1767490310419,0.0001646,91145.0,91134.0,0.11489617]
[1767490310610,0.01097,91196.0,91154.0,0.11489617]
[1767490310611,0.09561836,91175.0,91154.0,0.11489617]
[1767490310805,0.09332,91172.0,91159.0,0.08591379]
[1767490311000,0.09332,91172.0,91154.0,0.11489617]
[1767490311407,0.11190735,91172.0,91154.0,0.0946901]
[1767490311610,0.0001646,91171.0,91154.0,0.0946901]
[1767490312301,0.08591379,91170.0,91152.0,0.0001646]
[1767490312507,0.01858735,91167.0,91152.0,0.0001646]
[1767490312813,0.01858735,91160.0,91147.0,0.010976]
[1767490313210,0.09561836,91161.0,91147.0,0.010976]
[1767490313405,0.10450114,91170.0,91147.0,0.010976]
[1767490313608,0.09561836,91168.0,91149.0,0.0001646]
[1767490313806,0.09561836,91168.0,91153.0,0.010975]
[1767490314009,0.01858735,91170.0,91153.0,0.010975]